[Event "*** Titled Tuesday Blitz"]
[Site "Chess.com"]
[Date "2021.02.16"]
[Round "10"]
[White "ajdemipopushi"]
[Black "Tpros"]
[Result "0-1"]
[WhiteElo "2366"]
[BlackElo "2479"]
[TimeControl "180+1"]
[EndTime "12:01:05 PST"]
[Termination "Tpros won by checkmate"]

1. Nf3 {[%clk 0:03:00.9]} 1... d6 {[%clk 0:02:59]} 2. g3 {[%clk 0:03:00.5]} 2...
c6 {[%clk 0:02:58.5]} 3. Bg2 {[%clk 0:03:00.3]} 3... g6 {[%clk 0:02:59.4]} 4. c4
{[%clk 0:03:00.5]} 4... Bg7 {[%clk 0:02:59.7]} 5. d4 {[%clk 0:03:00.8]} 5... f5
{[%clk 0:02:59.2]} 6. Nc3 {[%clk 0:03:00.6]} 6... Nf6 {[%clk 0:02:59.7]} 7. O-O
{[%clk 0:03:00]} 7... O-O {[%clk 0:02:59.4]} 8. d5 {[%clk 0:02:58.6]} 8... e5
{[%clk 0:02:57.8]} 9. dxe6 {[%clk 0:02:58.2]} 9... Bxe6 {[%clk 0:02:57.6]} 10.
Qd3 {[%clk 0:02:58.7]} 10... Na6 {[%clk 0:02:53.7]} 11. Bf4 {[%clk 0:02:52]}
11... Ne8 {[%clk 0:02:34.5]} 12. Ng5 {[%clk 0:02:47.5]} 12... Qe7 {[%clk
0:02:25.9]} 13. Nxe6 {[%clk 0:02:40]} 13... Qxe6 {[%clk 0:02:26.8]} 14. b3
{[%clk 0:02:39.8]} 14... Nc5 {[%clk 0:02:23.6]} 15. Qc2 {[%clk 0:02:38.9]} 15...
Nf6 {[%clk 0:02:14.1]} 16. Rad1 {[%clk 0:02:31.2]} 16... Rad8 {[%clk 0:02:10.8]}
17. b4 {[%clk 0:01:52.3]} 17... Nce4 {[%clk 0:01:53.7]} 18. Nxe4 {[%clk
0:01:51.8]} 18... Nxe4 {[%clk 0:01:52.6]} 19. Rd3 {[%clk 0:01:48.4]} 19... d5
{[%clk 0:01:22.7]} 20. Rfd1 {[%clk 0:01:45.1]} 20... Rd7 {[%clk 0:01:12.2]} 21.
Be3 {[%clk 0:01:16.3]} 21... a6 {[%clk 0:00:54.5]} 22. b5 {[%clk 0:01:13.1]}
22... axb5 {[%clk 0:00:46.2]} 23. cxb5 {[%clk 0:01:12.2]} 23... Ra8 {[%clk
0:00:27.6]} 24. bxc6 {[%clk 0:01:02.3]} 24... bxc6 {[%clk 0:00:26.5]} 25. Bd4
{[%clk 0:00:45.2]} 25... Bxd4 {[%clk 0:00:24.3]} 26. Rxd4 {[%clk 0:00:44.7]}
26... Rda7 {[%clk 0:00:22.6]} 27. a4 {[%clk 0:00:41.9]} 27... Ra6 {[%clk
0:00:15.3]} 28. h4 {[%clk 0:00:34.3]} 28... h5 {[%clk 0:00:14.7]} 29. Bxe4
{[%clk 0:00:24]} 29... fxe4 {[%clk 0:00:14.1]} 30. e3 {[%clk 0:00:22.4]} 30...
Rb8 {[%clk 0:00:11.4]} 31. Rc1 {[%clk 0:00:18.5]} 31... Rab6 {[%clk 0:00:05.2]}
32. Rd2 {[%clk 0:00:18]} 32... Kh7 {[%clk 0:00:03.8]} 33. Qc3 {[%clk 0:00:16.5]}
33... Kh6 {[%clk 0:00:02.7]} 34. Rdc2 {[%clk 0:00:16.2]} 34... Ra6 {[%clk
0:00:02.6]} 35. Qd4 {[%clk 0:00:15.8]} 35... Rba8 {[%clk 0:00:01.9]} 36. Ra1
{[%clk 0:00:13.8]} 36... Kh7 {[%clk 0:00:02]} 37. a5 {[%clk 0:00:13.1]} 37...
Kh6 {[%clk 0:00:02.2]} 38. Rc5 {[%clk 0:00:12.2]} 38... Kh7 {[%clk 0:00:02.4]}
39. Qc3 {[%clk 0:00:12.5]} 39... Kh6 {[%clk 0:00:02.4]} 40. Rc1 {[%clk
0:00:12.8]} 40... Qf5 {[%clk 0:00:02.5]} 41. Rxc6 {[%clk 0:00:12.8]} 41... Rxa5
{[%clk 0:00:02.5]} 42. Rc8 {[%clk 0:00:12.4]} 42... Rxc8 {[%clk 0:00:02.1]} 43.
Qxc8 {[%clk 0:00:12.6]} 43... Qxc8 {[%clk 0:00:03]} 44. Rxc8 {[%clk 0:00:12.6]}
44... Kg7 {[%clk 0:00:03.9]} 45. Rd8 {[%clk 0:00:12.8]} 45... Kf7 {[%clk
0:00:03.9]} 46. Rd6 {[%clk 0:00:13]} 46... Kg7 {[%clk 0:00:03.4]} 47. Kg2 {[%clk
0:00:13.4]} 47... Rc5 {[%clk 0:00:04]} 48. g4 {[%clk 0:00:13.4]} 48... Kh6
{[%clk 0:00:03.9]} 49. Kg3 {[%clk 0:00:12.4]} 49... hxg4 {[%clk 0:00:04.8]} 50.
Kxg4 {[%clk 0:00:12.7]} 50... Rc2 {[%clk 0:00:04.3]} 51. Kg3 {[%clk 0:00:12.8]}
51... Rd2 {[%clk 0:00:03.6]} 52. Kg2 {[%clk 0:00:11]} 52... Rd3 {[%clk
0:00:03.4]} 53. Kg3 {[%clk 0:00:11.4]} 53... Kh5 {[%clk 0:00:04]} 54. Kf4 {[%clk
0:00:11.1]} 54... Kh6 {[%clk 0:00:04.9]} 55. Kg4 {[%clk 0:00:10.5]} 55... Rd2
{[%clk 0:00:03.8]} 56. h5 {[%clk 0:00:10.4]} 56... Rxf2 {[%clk 0:00:03.7]} 57.
Rxg6+ {[%clk 0:00:10.2]} 57... Kh7 {[%clk 0:00:03.9]} 58. Rd6 {[%clk 0:00:10.2]}
58... Rf3 {[%clk 0:00:04.5]} 59. Rxd5 {[%clk 0:00:10.3]} 59... Rxe3 {[%clk
0:00:04.9]} 60. Kf4 {[%clk 0:00:10.9]} 60... Re1 {[%clk 0:00:05.7]} 61. Kg5
{[%clk 0:00:10.4]} 61... e3 {[%clk 0:00:05.5]} 62. Rd7+ {[%clk 0:00:09.9]} 62...
Kg8 {[%clk 0:00:05.7]} 63. Kh6 {[%clk 0:00:10.3]} 63... e2 {[%clk 0:00:05.1]}
64. Re7 {[%clk 0:00:10.7]} 64... Kf8 {[%clk 0:00:04.7]} 65. Re3 {[%clk
0:00:10.5]} 65... Kg8 {[%clk 0:00:04.7]} 66. Re5 {[%clk 0:00:10.6]} 66... Kf7
{[%clk 0:00:04.4]} 67. Kh7 {[%clk 0:00:10.7]} 67... Rh1 {[%clk 0:00:04.1]} 68.
Rf5+ {[%clk 0:00:03.1]} 68... Ke6 {[%clk 0:00:03.9]} 69. Rf8 {[%clk 0:00:01.2]}
69... e1=Q {[%clk 0:00:04.2]} 70. Re8+ {[%clk 0:00:01.5]} 70... Kf7 {[%clk
0:00:04.8]} 71. Rxe1 {[%clk 0:00:02]} 71... Rxh5# {[%clk 0:00:04.6]} 0-1

[Event "*** Titled Tuesday Blitz"]
[Site "Chess.com"]
[Date "2021.02.16"]
[Round "10"]
[White "amintabatabaei"]
[Black "bascheyaro"]
[Result "1/2-1/2"]
[WhiteElo "2918"]
[BlackElo "2733"]
[TimeControl "180+1"]
[EndTime "12:01:08 PST"]
[Termination "Game drawn by repetition"]

1. d4 {[%clk 0:03:00.9]} 1... d5 {[%clk 0:02:59.8]} 2. Nf3 {[%clk 0:03:01.8]}
2... Bf5 {[%clk 0:02:59.9]} 3. Bf4 {[%clk 0:03:02.2]} 3... e6 {[%clk 0:03:00.2]}
4. e3 {[%clk 0:03:02.3]} 4... Nf6 {[%clk 0:03:00.5]} 5. Bd3 {[%clk 0:03:01.3]}
5... Bg6 {[%clk 0:03:00.7]} 6. c4 {[%clk 0:02:57.8]} 6... Bb4+ {[%clk
0:02:59.8]} 7. Nc3 {[%clk 0:02:58]} 7... O-O {[%clk 0:03:00]} 8. O-O {[%clk
0:02:57.9]} 8... c5 {[%clk 0:02:59.3]} 9. Bxg6 {[%clk 0:02:56.9]} 9... hxg6
{[%clk 0:02:58.8]} 10. cxd5 {[%clk 0:02:57.2]} 10... cxd4 {[%clk 0:02:56.6]} 11.
Qxd4 {[%clk 0:02:50.6]} 11... Bxc3 {[%clk 0:02:56.7]} 12. Qxc3 {[%clk
0:02:50.4]} 12... Nxd5 {[%clk 0:02:56.3]} 13. Qb3 {[%clk 0:02:50.7]} 13... Nxf4
{[%clk 0:02:55.9]} 14. exf4 {[%clk 0:02:51.6]} 14... Qb6 {[%clk 0:02:54.4]} 15.
Qxb6 {[%clk 0:02:50.4]} 15... axb6 {[%clk 0:02:55.3]} 16. a3 {[%clk 0:02:49.7]}
16... Nc6 {[%clk 0:02:55.2]} 17. Rfd1 {[%clk 0:02:50.3]} 17... Rfd8 {[%clk
0:02:55]} 18. Kf1 {[%clk 0:02:50.7]} 18... Kf8 {[%clk 0:02:52.7]} 19. Ke2 {[%clk
0:02:50.6]} 19... Ke7 {[%clk 0:02:53.2]} 20. g3 {[%clk 0:02:51.1]} 20... Rxd1
{[%clk 0:02:52.5]} 21. Rxd1 {[%clk 0:02:52]} 21... Ra5 {[%clk 0:02:52.4]} 22.
Rd3 {[%clk 0:02:47.8]} 22... Rc5 {[%clk 0:02:51.6]} 23. Kd2 {[%clk 0:02:47.8]}
23... b5 {[%clk 0:02:50]} 24. h4 {[%clk 0:02:45.2]} 24... f6 {[%clk 0:02:46.4]}
25. b4 {[%clk 0:02:33.6]} 25... Rc4 {[%clk 0:02:32.2]} 26. Rc3 {[%clk
0:02:33.6]} 26... Kd6 {[%clk 0:02:21.5]} 27. Kd3 {[%clk 0:02:31.8]} 27... Kd5
{[%clk 0:02:20.4]} 28. Nd2 {[%clk 0:02:29.3]} 28... Rxc3+ {[%clk 0:02:09.2]} 29.
Kxc3 {[%clk 0:02:30.2]} 29... e5 {[%clk 0:02:07.9]} 30. fxe5 {[%clk 0:02:31.1]}
30... Nxe5 {[%clk 0:02:07.9]} 31. f3 {[%clk 0:02:18]} 31... b6 {[%clk
0:02:03.1]} 32. f4 {[%clk 0:02:15.5]} 32... Ng4 {[%clk 0:01:51]} 33. Kd3 {[%clk
0:02:14.7]} 33... Nh6 {[%clk 0:01:49.7]} 34. Nf1 {[%clk 0:02:08.2]} 34... Nf5
{[%clk 0:01:46.7]} 35. Ne3+ {[%clk 0:01:41.4]} 35... Nxe3 {[%clk 0:01:46.6]} 36.
Kxe3 {[%clk 0:01:42.3]} 36... Kc4 {[%clk 0:01:47.1]} 37. Ke4 {[%clk 0:01:17.5]}
37... Kb3 {[%clk 0:01:47.2]} 38. f5 {[%clk 0:01:17.9]} 38... gxf5+ {[%clk
0:00:42]} 39. Kxf5 {[%clk 0:01:18.8]} 39... Kxa3 {[%clk 0:00:42.4]} 40. Kg6
{[%clk 0:01:19.6]} 40... Kxb4 {[%clk 0:00:42.9]} 41. Kxg7 {[%clk 0:01:19.6]}
41... Ka3 {[%clk 0:00:40.7]} 42. h5 {[%clk 0:01:17.3]} 42... b4 {[%clk 0:00:41]}
43. h6 {[%clk 0:01:18.2]} 43... b3 {[%clk 0:00:41.6]} 44. h7 {[%clk 0:01:19.1]}
44... b2 {[%clk 0:00:42.1]} 45. h8=Q {[%clk 0:01:20]} 45... b1=Q {[%clk
0:00:42.2]} 46. Qf8+ {[%clk 0:01:14.2]} 46... Ka4 {[%clk 0:00:36.2]} 47. Qxf6
{[%clk 0:01:10.2]} 47... b5 {[%clk 0:00:35.7]} 48. g4 {[%clk 0:01:10.8]} 48...
b4 {[%clk 0:00:36]} 49. Qa6+ {[%clk 0:01:09.7]} 49... Kb3 {[%clk 0:00:36.1]} 50.
g5 {[%clk 0:01:10.1]} 50... Qb2+ {[%clk 0:00:34.5]} 51. Kg8 {[%clk 0:00:57.1]}
51... Qe5 {[%clk 0:00:20]} 52. g6 {[%clk 0:00:54.9]} 52... Kb2 {[%clk
0:00:20.3]} 53. g7 {[%clk 0:00:54.1]} 53... b3 {[%clk 0:00:19.4]} 54. Kf7 {[%clk
0:00:49.4]} 54... Qh5+ {[%clk 0:00:14.5]} 55. Qg6 {[%clk 0:00:48.6]} 55... Qd5+
{[%clk 0:00:14.4]} 56. Qe6 {[%clk 0:00:47.9]} 56... Qh5+ {[%clk 0:00:13.9]} 57.
Kf8 {[%clk 0:00:46.1]} 57... Qf3+ {[%clk 0:00:10.8]} 58. Ke8 {[%clk 0:00:46]}
58... Qa8+ {[%clk 0:00:10.3]} 59. Kf7 {[%clk 0:00:46.1]} 59... Qb7+ {[%clk
0:00:09.8]} 60. Kg6 {[%clk 0:00:44.2]} 60... Qg2+ {[%clk 0:00:09.6]} 61. Kf6
{[%clk 0:00:44.2]} 61... Qf3+ {[%clk 0:00:09.5]} 62. Qf5 {[%clk 0:00:44.2]}
62... Qc6+ {[%clk 0:00:08.8]} 63. Kg5 {[%clk 0:00:44.2]} 63... Qg2+ {[%clk
0:00:08.6]} 64. Qg4 {[%clk 0:00:43]} 64... Qd5+ {[%clk 0:00:08.5]} 65. Kh6
{[%clk 0:00:43.1]} 65... Qg8 {[%clk 0:00:08.1]} 66. Qf5 {[%clk 0:00:22.7]} 66...
Ka2 {[%clk 0:00:07.4]} 67. Qf8 {[%clk 0:00:12.9]} 67... Qe6+ {[%clk 0:00:07.2]}
68. Kg5 {[%clk 0:00:13.4]} 68... Qe5+ {[%clk 0:00:06.4]} 69. Kg4 {[%clk
0:00:12.6]} 69... Qe4+ {[%clk 0:00:06.9]} 70. Kg3 {[%clk 0:00:13.1]} 70... Qe3+
{[%clk 0:00:07.4]} 71. Kg2 {[%clk 0:00:13.5]} 71... Qg5+ {[%clk 0:00:07.7]} 72.
Kh3 {[%clk 0:00:11.3]} 72... Qh5+ {[%clk 0:00:07.4]} 73. Kg3 {[%clk 0:00:11.6]}
73... Qg5+ {[%clk 0:00:07.9]} 74. Kf3 {[%clk 0:00:12.2]} 74... Qd5+ {[%clk
0:00:08]} 75. Ke2 {[%clk 0:00:12.2]} 75... Qe4+ {[%clk 0:00:08.4]} 76. Kd2
{[%clk 0:00:10.7]} 76... Qd4+ {[%clk 0:00:08.9]} 77. Ke1 {[%clk 0:00:10.8]}
77... Qe3+ {[%clk 0:00:09.2]} 78. Kf1 {[%clk 0:00:11.3]} 78... Qd3+ {[%clk
0:00:09.3]} 79. Kg2 {[%clk 0:00:11.4]} 79... Qg6+ {[%clk 0:00:09.5]} 80. Kf1
{[%clk 0:00:09.8]} 80... Qd3+ {[%clk 0:00:09.6]} 81. Kg1 {[%clk 0:00:09.9]}
81... Qg3+ {[%clk 0:00:09.4]} 82. Kf1 {[%clk 0:00:10.6]} 82... Qd3+ {[%clk
0:00:09.5]} 1/2-1/2

[Event "*** Titled Tuesday Blitz"]
[Site "Chess.com"]
[Date "2021.02.16"]
[Round "10"]
[White "Aradhya2000"]
[Black "nrvisakh"]
[Result "0-1"]
[WhiteElo "2583"]
[BlackElo "2780"]
[TimeControl "180+1"]
[EndTime "12:01:08 PST"]
[Termination "nrvisakh won by checkmate"]

1. d4 {[%clk 0:03:00.9]} 1... Nf6 {[%clk 0:02:56.2]} 2. c4 {[%clk 0:03:00.8]}
2... g6 {[%clk 0:02:56.1]} 3. g3 {[%clk 0:02:59.8]} 3... Bg7 {[%clk 0:02:56.2]}
4. Bg2 {[%clk 0:03:00.4]} 4... O-O {[%clk 0:02:57.1]} 5. Nc3 {[%clk 0:03:00.1]}
5... d6 {[%clk 0:02:56.1]} 6. Nf3 {[%clk 0:03:00.2]} 6... Nc6 {[%clk 0:02:53.5]}
7. O-O {[%clk 0:02:59.8]} 7... a6 {[%clk 0:02:52.3]} 8. b3 {[%clk 0:02:58.7]}
8... Rb8 {[%clk 0:02:51.6]} 9. d5 {[%clk 0:02:58.3]} 9... Na5 {[%clk 0:02:30.3]}
10. Bb2 {[%clk 0:02:55.8]} 10... c5 {[%clk 0:02:17.8]} 11. dxc6 {[%clk
0:02:55.4]} 11... Nxc6 {[%clk 0:02:16.1]} 12. Rc1 {[%clk 0:02:55.2]} 12... Bd7
{[%clk 0:01:58.7]} 13. a4 {[%clk 0:02:51.6]} 13... Ne4 {[%clk 0:01:54.1]} 14.
Qc2 {[%clk 0:02:44.4]} 14... Nxc3 {[%clk 0:01:50.8]} 15. Bxc3 {[%clk 0:02:45.3]}
15... Bxc3 {[%clk 0:01:43.8]} 16. Qxc3 {[%clk 0:02:46.2]} 16... Qa5 {[%clk
0:01:44.1]} 17. Qe3 {[%clk 0:02:39.8]} 17... Qc5 {[%clk 0:01:39.3]} 18. Qh6
{[%clk 0:02:39]} 18... f6 {[%clk 0:01:39.5]} 19. Bh3 {[%clk 0:02:34.2]} 19...
Bxh3 {[%clk 0:01:37]} 20. Qxh3 {[%clk 0:02:35.1]} 20... Qf5 {[%clk 0:01:37]} 21.
Qxf5 {[%clk 0:02:26.1]} 21... gxf5 {[%clk 0:01:36.8]} 22. Rfd1 {[%clk
0:02:25.5]} 22... Rfd8 {[%clk 0:01:35]} 23. Kg2 {[%clk 0:02:10.7]} 23... Kf7
{[%clk 0:01:34.5]} 24. Nd4 {[%clk 0:02:09]} 24... e6 {[%clk 0:01:33]} 25. Rc3
{[%clk 0:02:06.9]} 25... Rdc8 {[%clk 0:01:08.4]} 26. f4 {[%clk 0:01:58.1]} 26...
Nxd4 {[%clk 0:00:55.7]} 27. Rxd4 {[%clk 0:01:57.7]} 27... Rc6 {[%clk 0:00:56.6]}
28. Rcd3 {[%clk 0:01:50.6]} 28... Ke7 {[%clk 0:00:56.3]} 29. h3 {[%clk
0:01:38.7]} 29... b5 {[%clk 0:00:52.4]} 30. cxb5 {[%clk 0:01:37.3]} 30... axb5
{[%clk 0:00:53.3]} 31. g4 {[%clk 0:01:37.4]} 31... fxg4 {[%clk 0:00:48.2]} 32.
hxg4 {[%clk 0:01:38.3]} 32... bxa4 {[%clk 0:00:47.3]} 33. Rxa4 {[%clk
0:01:31.2]} 33... Rcb6 {[%clk 0:00:37.9]} 34. Rh3 {[%clk 0:01:27.9]} 34... d5
{[%clk 0:00:37.3]} 35. Rxh7+ {[%clk 0:01:19.9]} 35... Kd6 {[%clk 0:00:37.2]} 36.
Rh6 {[%clk 0:01:19.2]} 36... Rg8 {[%clk 0:00:21]} 37. g5 {[%clk 0:01:02.1]}
37... fxg5 {[%clk 0:00:18.5]} 38. f5 {[%clk 0:01:02.4]} 38... Ke5 {[%clk
0:00:18.5]} 39. Rxe6+ {[%clk 0:01:02.3]} 39... Rxe6 {[%clk 0:00:18.4]} 40. fxe6
{[%clk 0:01:02.7]} 40... Kxe6 {[%clk 0:00:17.6]} 41. Kf3 {[%clk 0:01:02.6]}
41... Rb8 {[%clk 0:00:15.1]} 42. Kg4 {[%clk 0:01:00.2]} 42... Rxb3 {[%clk
0:00:14.7]} 43. Kxg5 {[%clk 0:00:59.7]} 43... Ke5 {[%clk 0:00:14.3]} 44. Kg4
{[%clk 0:00:57.6]} 44... Re3 {[%clk 0:00:13.8]} 45. Ra2 {[%clk 0:00:57.2]} 45...
Ke4 {[%clk 0:00:12.7]} 46. Rb2 {[%clk 0:00:43.9]} 46... d4 {[%clk 0:00:13]} 47.
Rc2 {[%clk 0:00:43.6]} 47... Rc3 {[%clk 0:00:12.1]} 48. Ra2 {[%clk 0:00:42.6]}
48... Ke3 {[%clk 0:00:12]} 49. Kg3 {[%clk 0:00:41.7]} 49... Rc8 {[%clk
0:00:11.2]} 50. Kg2 {[%clk 0:00:41]} 50... Rf8 {[%clk 0:00:11.6]} 51. Kg1 {[%clk
0:00:30]} 51... Rf7 {[%clk 0:00:10.4]} 52. Rb2 {[%clk 0:00:28.7]} 52... Rf6
{[%clk 0:00:09.9]} 53. Ra2 {[%clk 0:00:28.8]} 53... Rb6 {[%clk 0:00:08.1]} 54.
Kg2 {[%clk 0:00:18.2]} 54... Rb1 {[%clk 0:00:07.8]} 55. Ra8 {[%clk 0:00:17.3]}
55... Kxe2 {[%clk 0:00:07.2]} 56. Re8+ {[%clk 0:00:17]} 56... Kd2 {[%clk
0:00:06.7]} 57. Kf2 {[%clk 0:00:16.9]} 57... d3 {[%clk 0:00:05]} 58. Ra8 {[%clk
0:00:14.9]} 58... Kd1 {[%clk 0:00:05]} 59. Ra2 {[%clk 0:00:14.1]} 59... d2
{[%clk 0:00:05.2]} 60. Kf1 {[%clk 0:00:12.8]} 60... Rb7 {[%clk 0:00:04.9]} 61.
Kf2 {[%clk 0:00:12.5]} 61... Kc1 {[%clk 0:00:04]} 62. Ra1+ {[%clk 0:00:12]}
62... Rb1 {[%clk 0:00:03.7]} 63. Rxb1+ {[%clk 0:00:07.7]} 63... Kxb1 {[%clk
0:00:03.7]} 64. Ke2 {[%clk 0:00:08.6]} 64... Kc1 {[%clk 0:00:04.5]} 65. Kd3
{[%clk 0:00:08.4]} 65... d1=Q+ {[%clk 0:00:05.4]} 66. Kc4 {[%clk 0:00:09.3]}
66... Qc2+ {[%clk 0:00:06.2]} 67. Kb5 {[%clk 0:00:10.2]} 67... Kd2 {[%clk
0:00:06.6]} 68. Kb4 {[%clk 0:00:11.1]} 68... Qc3+ {[%clk 0:00:06.9]} 69. Ka4
{[%clk 0:00:11.2]} 69... Kd3 {[%clk 0:00:07.8]} 70. Kb5 {[%clk 0:00:10.6]} 70...
Kd4 {[%clk 0:00:08.7]} 71. Ka4 {[%clk 0:00:11]} 71... Qb2 {[%clk 0:00:08.5]} 72.
Ka5 {[%clk 0:00:11.1]} 72... Kc5 {[%clk 0:00:09.3]} 73. Ka6 {[%clk 0:00:11.7]}
73... Qb6# {[%clk 0:00:08.2]} 0-1

[Event "*** Titled Tuesday Blitz"]
[Site "Chess.com"]
[Date "2021.02.16"]
[Round "10"]
[White "frederiksvane"]
[Black "NikolaN98"]
[Result "0-1"]
[WhiteElo "2699"]
[BlackElo "2513"]
[TimeControl "180+1"]
[EndTime "12:01:25 PST"]
[Termination "NikolaN98 won by resignation"]

1. e4 {[%clk 0:03:00.9]} 1... c6 {[%clk 0:02:58.6]} 2. Nf3 {[%clk 0:03:00.3]}
2... d5 {[%clk 0:02:52.8]} 3. Nc3 {[%clk 0:03:00.6]} 3... dxe4 {[%clk 0:02:51]}
4. Nxe4 {[%clk 0:03:01.5]} 4... Nf6 {[%clk 0:02:50.6]} 5. Qe2 {[%clk 0:03:01.8]}
5... Nxe4 {[%clk 0:02:48.3]} 6. Qxe4 {[%clk 0:03:02.7]} 6... Be6 {[%clk
0:02:48]} 7. c4 {[%clk 0:02:57.1]} 7... g6 {[%clk 0:02:31.9]} 8. d4 {[%clk
0:02:54.7]} 8... Bg7 {[%clk 0:02:30.9]} 9. Be2 {[%clk 0:02:51.9]} 9... O-O
{[%clk 0:02:26.2]} 10. O-O {[%clk 0:02:50]} 10... Nd7 {[%clk 0:02:15.1]} 11. Qh4
{[%clk 0:02:47.2]} 11... f6 {[%clk 0:02:06.2]} 12. Bd2 {[%clk 0:02:29.8]} 12...
Nb6 {[%clk 0:02:04.8]} 13. b3 {[%clk 0:02:28.6]} 13... a5 {[%clk 0:01:57.1]} 14.
Bc3 {[%clk 0:02:27.1]} 14... a4 {[%clk 0:01:55.9]} 15. Rfe1 {[%clk 0:02:25.9]}
15... Bf7 {[%clk 0:01:55.1]} 16. Bf1 {[%clk 0:02:23.7]} 16... Qd7 {[%clk
0:01:52.4]} 17. Qf4 {[%clk 0:02:20.8]} 17... Rfe8 {[%clk 0:01:30.5]} 18. Qe3
{[%clk 0:02:19.3]} 18... Qc7 {[%clk 0:01:24.4]} 19. h3 {[%clk 0:02:14.8]} 19...
Nd7 {[%clk 0:01:24]} 20. Bd3 {[%clk 0:02:04.9]} 20... c5 {[%clk 0:01:18.7]} 21.
d5 {[%clk 0:02:00.5]} 21... axb3 {[%clk 0:01:17]} 22. axb3 {[%clk 0:02:00.3]}
22... Rxa1 {[%clk 0:01:17.9]} 23. Rxa1 {[%clk 0:01:59.2]} 23... e5 {[%clk
0:01:15.1]} 24. dxe6 {[%clk 0:01:56.8]} 24... Bxe6 {[%clk 0:01:08.3]} 25. Qd2
{[%clk 0:01:50]} 25... Nf8 {[%clk 0:01:07]} 26. Qb2 {[%clk 0:01:46.6]} 26... Qf4
{[%clk 0:01:02.7]} 27. Re1 {[%clk 0:01:44.1]} 27... Bd7 {[%clk 0:01:00.1]} 28.
Rxe8 {[%clk 0:01:41.3]} 28... Bxe8 {[%clk 0:01:00.2]} 29. Qa2 {[%clk 0:01:24.5]}
29... Bc6 {[%clk 0:00:58.8]} 30. Ne1 {[%clk 0:01:20.5]} 30... Qc1 {[%clk
0:00:48.5]} 31. Bd2 {[%clk 0:01:11.4]} 31... Qd1 {[%clk 0:00:45.4]} 32. Kf1
{[%clk 0:01:10.8]} 32... f5 {[%clk 0:00:40.5]} 33. Qc2 {[%clk 0:00:58.2]} 33...
Qxc2 {[%clk 0:00:39.2]} 34. Nxc2 {[%clk 0:00:58.2]} 34... Ne6 {[%clk 0:00:39.4]}
35. f4 {[%clk 0:00:53.8]} 35... Kf7 {[%clk 0:00:37.8]} 36. Be3 {[%clk
0:00:53.9]} 36... b6 {[%clk 0:00:37.2]} 37. g3 {[%clk 0:00:53.6]} 37... Ke7
{[%clk 0:00:33.4]} 38. Ke2 {[%clk 0:00:48.1]} 38... Bg2 {[%clk 0:00:31.6]} 39.
h4 {[%clk 0:00:47.3]} 39... Kd6 {[%clk 0:00:29]} 40. Kd2 {[%clk 0:00:39.7]}
40... Bf3 {[%clk 0:00:26.9]} 41. Be2 {[%clk 0:00:39.5]} 41... Bxe2 {[%clk
0:00:26.3]} 42. Kxe2 {[%clk 0:00:40.4]} 42... Bf6 {[%clk 0:00:23.7]} 43. Kd3
{[%clk 0:00:40.5]} 43... Ng7 {[%clk 0:00:23.6]} 44. Ke2 {[%clk 0:00:36.1]} 44...
Nh5 {[%clk 0:00:23.3]} 45. Kf3 {[%clk 0:00:36.4]} 45... Bc3 {[%clk 0:00:22.2]}
46. Na3 {[%clk 0:00:35.6]} 46... Bg7 {[%clk 0:00:19.6]} 47. Nb5+ {[%clk
0:00:35.6]} 47... Kc6 {[%clk 0:00:19.8]} 48. Bf2 {[%clk 0:00:36.2]} 48... Ba1
{[%clk 0:00:18.1]} 49. Na3 {[%clk 0:00:35]} 49... Nf6 {[%clk 0:00:17.5]} 50. Nc2
{[%clk 0:00:35]} 50... Bc3 {[%clk 0:00:17.7]} 51. Be3 {[%clk 0:00:32.9]} 51...
Kd6 {[%clk 0:00:14.9]} 52. Bc1 {[%clk 0:00:32.7]} 52... h5 {[%clk 0:00:13.4]}
53. Ne3 {[%clk 0:00:32.5]} 53... Ne4 {[%clk 0:00:12.2]} 54. Nd5 {[%clk
0:00:32.4]} 54... Ba5 {[%clk 0:00:11.5]} 55. Be3 {[%clk 0:00:30.3]} 55... b5
{[%clk 0:00:11.4]} 56. Bc1 {[%clk 0:00:27.3]} 56... bxc4 {[%clk 0:00:10]} 57.
bxc4 {[%clk 0:00:28.2]} 57... Bc3 {[%clk 0:00:08.4]} 58. Be3 {[%clk 0:00:23.8]}
58... Bd4 {[%clk 0:00:08.2]} 59. Bc1 {[%clk 0:00:23.5]} 59... Ke6 {[%clk
0:00:08.4]} 60. Be3 {[%clk 0:00:17.3]} 60... Kd6 {[%clk 0:00:07.5]} 61. Bc1
{[%clk 0:00:17]} 61... Bc3 {[%clk 0:00:07.8]} 62. Be3 {[%clk 0:00:16.7]} 62...
Be1 {[%clk 0:00:07.9]} 63. Bc1 {[%clk 0:00:09.9]} 63... Bxg3 {[%clk 0:00:07.7]}
64. Bb2 {[%clk 0:00:09.4]} 64... Bxh4 {[%clk 0:00:07.8]} 65. Be5+ {[%clk
0:00:10.1]} 65... Ke6 {[%clk 0:00:07.7]} 66. Nc7+ {[%clk 0:00:10.2]} 66... Kd7
{[%clk 0:00:07.5]} 67. Nd5 {[%clk 0:00:08.8]} 67... Bd8 {[%clk 0:00:07.9]} 68.
Ne3 {[%clk 0:00:08.6]} 68... Ke6 {[%clk 0:00:07.6]} 69. Nd5 {[%clk 0:00:08.6]}
69... Nd2+ {[%clk 0:00:07.4]} 70. Kg3 {[%clk 0:00:05.8]} 70... Nxc4 {[%clk
0:00:08.3]} 71. Nc3 {[%clk 0:00:06]} 71... Nxe5 {[%clk 0:00:08.2]} 72. fxe5
{[%clk 0:00:06.2]} 72... Kxe5 {[%clk 0:00:09.1]} 73. Nb5 {[%clk 0:00:06.9]}
73... c4 {[%clk 0:00:08.6]} 74. Kf3 {[%clk 0:00:07.8]} 74... Ba5 {[%clk
0:00:07.3]} 75. Na3 {[%clk 0:00:08.4]} 75... c3 {[%clk 0:00:08.2]} 76. Nc4+
{[%clk 0:00:08.8]} 76... Kd4 {[%clk 0:00:08.3]} 77. Nxa5 {[%clk 0:00:09.4]}
77... c2 {[%clk 0:00:08.9]} 78. Nb3+ {[%clk 0:00:03.4]} 78... Kc3 {[%clk
0:00:09.1]} 79. Nc1 {[%clk 0:00:04.1]} 79... Kd2 {[%clk 0:00:09.1]} 80. Nb3+
{[%clk 0:00:04.4]} 80... Kd1 {[%clk 0:00:09.3]} 81. Kf4 {[%clk 0:00:04.5]} 81...
c1=Q+ {[%clk 0:00:09.5]} 82. Nxc1 {[%clk 0:00:05.3]} 82... Kxc1 {[%clk
0:00:10.2]} 83. Kg5 {[%clk 0:00:06.2]} 83... Kd2 {[%clk 0:00:10.3]} 84. Kh4
{[%clk 0:00:07.1]} 84... Ke3 {[%clk 0:00:10]} 85. Kg5 {[%clk 0:00:08]} 85... Ke4
{[%clk 0:00:10.2]} 86. Kxg6 {[%clk 0:00:08.9]} 86... h4 {[%clk 0:00:10.2]} 87.
Kf7 {[%clk 0:00:09.8]} 87... h3 {[%clk 0:00:11.1]} 0-1

[Event "*** Titled Tuesday Blitz"]
[Site "Chess.com"]
[Date "2021.02.16"]
[Round "11"]
[White "InitiatingASC"]
[Black "Andrakhanova"]
[Result "1-0"]
[WhiteElo "2423"]
[BlackElo "2270"]
[TimeControl "180+1"]
[EndTime "12:04:34 PST"]
[Termination "InitiatingASC won by checkmate"]

1. e4 {[%clk 0:03:00.9]} 1... c5 {[%clk 0:02:58.2]} 2. Nf3 {[%clk 0:02:57.8]}
2... e6 {[%clk 0:02:58.2]} 3. Bb5 {[%clk 0:02:57]} 3... a6 {[%clk 0:02:56.9]} 4.
Bd3 {[%clk 0:02:55.3]} 4... Nc6 {[%clk 0:02:55.2]} 5. O-O {[%clk 0:02:48.3]}
5... Nge7 {[%clk 0:02:54.1]} 6. c3 {[%clk 0:02:42.1]} 6... d5 {[%clk 0:02:52.5]}
7. exd5 {[%clk 0:02:39.6]} 7... Nxd5 {[%clk 0:02:53.4]} 8. Re1 {[%clk
0:02:39.3]} 8... Be7 {[%clk 0:02:50.5]} 9. Bc2 {[%clk 0:02:33.8]} 9... O-O
{[%clk 0:02:47.9]} 10. d4 {[%clk 0:02:34.2]} 10... cxd4 {[%clk 0:02:46.2]} 11.
cxd4 {[%clk 0:02:30.5]} 11... b6 {[%clk 0:02:43.9]} 12. a3 {[%clk 0:02:30.4]}
12... Bb7 {[%clk 0:02:43.9]} 13. Nc3 {[%clk 0:02:29.2]} 13... Nxc3 {[%clk
0:02:42.3]} 14. Qd3 {[%clk 0:02:26.1]} 14... Rc8 {[%clk 0:02:43.2]} 15. Qxh7#
{[%clk 0:02:25.6]} 1-0